Cogmind - Beta 13 @@@ ROGUE MODE // 2024.05.31 @ 17:19:47 Player: CanadianCogs Result: Destroyed by as-70781 with Assembled Maul Performance ------------- Evolutions (0) 0 Regions Visited (2) 400 Robots Destroyed (18) 90 Value Destroyed (338) 338 Prototype IDs (0) 0 Alien Tech Used (0) 0 Bonus (0) 0 TOTAL SCORE: 828 Bonus ------- None Cogmind --------- Core Integrity 0/250 Matter 300/300 Energy 160/160 System Corruption 10% Temperature Cool (0) Movement Walking (120) Location -10/Mines Parts ------- > --- POWER (1) -------- Light Nuclear Core > --- PROPULSION (2) --- Aluminum Leg Aluminum Leg > --- UTILITY (2) ------ Small Storage Unit > --- WEAPON (2) ------- EM Pulse Gun > --- INVENTORY (8) ---- Targeting Computer Targeting Computer Targeting Computer Targeting Computer ECM Suite ECM Suite Light Armor Plating Mining Claw Peak State ------------ > --- POWER ------------ Light Nuclear Core > --- PROPULSION ------- Aluminum Leg Aluminum Leg > --- UTILITY ---------- Small Storage Unit Seismic Detector > --- WEAPON ----------- Medium Laser Mining Claw > --- INVENTORY -------- Structural Scanner Targeting Computer Targeting Computer Targeting Computer Targeting Computer ECM Suite Light Armor Plating Medium Laser [Rating: 9] Favorites ----------- Power Light Nuclear Core Engine Light Ion Engine Power Core Light Nuclear Core Propulsion Aluminum Leg Leg Aluminum Leg Utility Small Storage Unit Device Seismic Detector Storage Small Storage Unit Weapon Medium Laser Energy Gun Medium Laser Slashing Weapon Mining Claw Build | -11 -10 -10 ------- Run | Yrd Mat Min Slots Evolved . | . . . Power . | . . . Propulsion . | . . . Utility . | . . . Weapon . | . . . Parts Attached 19 | 7 11 1 Power 3 | 1 2 . Engine 2 | 1 1 . Core 1 | . 1 . Reactor . | . . . Propulsion 6 | 2 4 . Treads . | . . . Leg 6 | 2 4 . Wheel . | . . . Hover . | . . . Flight . | . . . Utility 3 | 2 . 1 Device 2 | 1 . 1 Storage 1 | 1 . . Processor . | . . . Hackware . | . . . Protection . | . . . Artifact . | . . . Weapon 7 | 2 5 . Energy Gun 6 | 2 4 . Energy Cannon . | . . . Ballistic Gun . | . . . Ballistic Cannon . | . . . Launcher . | . . . Special Weapon . | . . . Impact Weapon . | . . . Slashing Weapon 1 | . 1 . Piercing Weapon . | . . . Special Melee Weapon . | . . . Unidentified Prototypes . | . . . Parts Lost 3 | . 1 2 Power . | . . . Propulsion 1 | . 1 . Utility 1 | . . 1 Weapon 1 | . . 1 Highest Loss Streak 2 | . 1 2 To Critical Strikes . | . . . Average Slot Usage (%) 97 | . 97 98 Engine 4 | . 7 . Core 9 | . 6 14 Leg 26 | . 26 28 Device 13 | . 14 13 Storage 14 | . 14 14 Energy Gun 25 | . 24 26 Slashing Weapon 2 | . 3 . Naked Turns . | . . . Heaviest Build 15 | 13 15 15 Greatest Support 20 | 20 20 20 Greatest Overweight (x) 4 | . 4 . Average Overweight (x) . | . . . Largest Inventory Capacity 8 | 8 8 8 Average Capacity 7 | 7 8 8 Most Carried 8 | 5 8 8 Average Carried 6 | . 6 8 Final Capacity 8 | 8 8 8 Final Carried 8 | . 8 8 Class Distribution -------------------- 100% | Mutant Dominant Class ---------------- Mutant | -10/Materials Mutant | -10/Mines Resources | -11 -10 -10 ----------- Run | Yrd Mat Min Matter Collected 375 | 201 144 30 Remotely . | . . . Salvage Created 446 | 27 318 101 Parts 39 | 4 23 12 Haulers Intercepted . | . . . Recyclers Shooed . | . . . Parts Field Recycled . | . . . Retrieved Matter . | . . . Parts Self-Destructed . | . . . Prevented . | . . . Kills | -11 -10 -10 ------- Run | Yrd Mat Min Combat Hostiles Destroyed 12 | . 6 6 Melee 3 | . 3 . Guns 5 | . 3 2 AOE 4 | . . 4 Classes Destroyed 7 | 1 4 2 Worker 1 | . . 1 Builder 1 | . 1 . Tunneler 1 | 1 . . Operator 2 | . 2 . Watcher 1 | . 1 . Swarmer 6 | . . 6 Grunt 6 | . 6 . Best Kill Streak 4 | 1 2 4 Combat Bots Only 3 | . 2 3 Max Kills in Single Turn 2 | 1 1 2 Gunslinging . | . . . Exploded 2 | . . 2 Melee 1 | . 1 . Uniques/NPCs Destroyed . | . . . Combat | -11 -10 -10 -------- Run | Yrd Mat Min Hostile Shots Fired 84 | . 46 38 Missed 22 | . 8 14 Damage Taken 744 | . 462 282 Core 250 | . 160 90 Absorbed by Shields . | . . . Core Remaining (%) 100 | 100 . . Volleys Fired 32 | 2 21 9 Largest 2 | 2 2 2 Hottest 100 | 100 100 80 Shots Fired 64 | 4 42 18 Gun 64 | 4 42 18 Cannon . | . . . Launcher . | . . . Special . | . . . Kinetic . | . . . Thermal 42 | 4 38 . Explosive . | . . . Electromagnetic 22 | . 4 18 Robot Hit Streak 6 | 2 6 5 Robot Miss Streak 5 | 1 4 5 Penetration Max . | . . . Secondary Targets 1 | . . 1 Max Gunslinging Chain 1 | . . 1 Shots Hit Robots 43 | 2 33 8 Core Hits 23 | 1 15 7 Critical Kills . | . . . Critical Parts Destroyed . | . . . Critical Strikes 2 | . 2 . Burn 2 | . 2 . Melee Attacks 14 | . 14 . Impact . | . . . Slashing 14 | . 14 . Piercing . | . . . Sneak Attacks . | . . . Combat Hostiles . | . . . Follow-up Attacks . | . . . Damage Inflicted 781 | 24 564 193 Guns 416 | 24 304 88 Cannons . | . . . Explosions 97 | . . 97 Melee 260 | . 260 . Ramming 8 | . . 8 Kinetic . | . . . Thermal 385 | 24 264 97 Explosive . | . . . Electromagnetic 128 | . 40 88 Impact . | . . . Slashing 260 | . 260 . Piercing . | . . . Highest Corruption 10 | . . 10 Average Corruption 6 | . . 6 Corruption Purged . | . . . Corruption Blocked . | . . . Effects 1 | . . 1 Message Errors 1 | . . 1 Overload Shots . | . . . Overflow Damage . | . . . Projectiles . | . . . Explosions . | . . . Melee . | . . . Knockbacks . | . . . Impact . | . . . Kinetic . | . . . Secondary . | . . . Self-Inflicted Damage . | . . . Shots . | . . . Rammed . | . . . Targets Rammed 1 | . . 1 Kicked 1 | . . 1 Crushed . | . . . Highest Temperature 318 | 78 318 144 Average Temperature 84 | 40 95 61 Received Heat Transfer 255 | . 255 . Effects 2 | . 2 . Interference 2 | . 2 . Siege Activations . | . . . Robots Corrupted . | . . . Combat Hostiles . | . . . Parts Fried . | . . . Impact Corruptions . | . . . Robots Melted . | . . . Combat Hostiles . | . . . Parts Melted 3 | . 3 . Heat Transferred 1049 | 74 925 50 Parts Sabotaged . | . . . Parts Stolen . | . . . Parts Stripped . | . . . Power Chain Reactions 2 | . . 2 Alert | -11 -10 -10 ------- Run | Yrd Mat Min Peak Influence 207 | 5 207 171 Initial 4 | . 3 4 Average 88 | 1 78 128 Maximum Alert Level 1 | . 1 . Low Security (%) 98 | 100 97 100 Level 1 1 | . 2 . Level 2 . | . . . Level 3 . | . . . Level 4 . | . . . Level 5 . | . . . High Security . | . . . Max Security . | . . . Squads Dispatched 2 | . 2 . Investigation . | . . . Extermination . | . . . Reinforcement 2 | . 2 . Assault . | . . . Garrison . | . . . Intercept . | . . . Searches Triggered . | . . . Construction Impeded . | . . . Haulers Reinforced . | . . . Active Scanning Responses . | . . . Cargo Convoy Interrupts . | . . . Stealth | -11 -10 -10 --------- Run | Yrd Mat Min Distress Signals . | . . . Communications Jammed . | . . . Distress Signals . | . . . Times Spotted 28 | . 10 18 Peak Tracking Total 12 | . 3 12 Tactical Retreats . | . . . Traps | -11 -10 -10 ------- Run | Yrd Mat Min Traps Triggered 1 | . 1 . Indirectly . | . . . Trap Hack Attempts . | . . . Triggered . | . . . Disarmed . | . . . Reprogrammed . | . . . Reused . | . . . Traps Extracted . | . . . Installed . | . . . Triggered . | . . . Machines | -11 -10 -10 ---------- Run | Yrd Mat Min Machines Disabled . | . . . Max in Single Turn . | . . . Machines Repaired . | . . . Machines Dismantled . | . . . Machines Sabotaged . | . . . Overloaded Fab Kills . | . . . Hacking | -11 -10 -10 --------- Run | Yrd Mat Min Machines Accessed 6 | . 5 1 Terminals 4 | . 4 . Fabricators . | . . . Repair Stations . | . . . Recycling Units 1 | . 1 . Scanalyzers . | . . . Garrison Access . | . . . Total Hacks 25 | . 24 1 Successful 11 | . 10 1 Failed 13 | . 13 . Catastrophic . | . . . Database Lockouts 1 | . 1 . Manual 18 | . 18 . Terminals 17 | . 17 . Fabricators . | . . . Repair Stations . | . . . Recycling Units 7 | . 7 . Scanalyzers . | . . . Garrison Access . | . . . Terminal Hacks 5 | . 4 1 Part Schematic 1 | . 1 . Robot Schematic 2 | . 2 . Open Door 1 | . . 1 Scanalyzer Index 1 | . 1 . Fabricator Hacks . | . . . Repair Station Hacks . | . . . Recycling Unit Hacks 2 | . 2 . Report Inventory 1 | . 1 . Retrieve Components 1 | . 1 . Scanalyzer . | . . . Garrison Access Hacks . | . . . Unauthorized Hacks 4 | . 4 . Terminals 4 | . 4 . Botnet 4 | . 4 . Fabricators . | . . . Repair Stations . | . . . Recycling Units . | . . . Scanalyzers . | . . . Garrison Access . | . . . Data Cores Recovered . | . . . Used . | . . . Hacking Detections 5 | . 5 . Full Trace Events 5 | . 5 . Feedback Events . | . . . Feedback Blocked . | . . . Robot Schematics Acquired 2 | . 2 . Robots Built . | . . . Authchips . | . . . Time . | . . . Total Robot Build Rating . | . . . Part Schematics Acquired 1 | . 1 . Parts Built . | . . . Authchips . | . . . Time . | . . . Total Part Build Rating . | . . . Parts Repaired . | . . . Time . | . . . Parts Recycled . | . . . Recycled Matter . | . . . Retrieved Matter . | . . . Retrieved Components 2 | . 2 . Parts Scanalyzed . | . . . Part Schematics Acquired . | . . . Parts Damaged . | . . . Bothacking | -11 -10 -10 ------------ Run | Yrd Mat Min Used RIF Installer . | . . . Robots Hacked . | . . . Non-combat . | . . . Combat . | . . . Robot Hacks Applied . | . . . Relay Couplers Released . | . . . Fabnet Peak Effective % . | . . . Robots Rewired . | . . . Allies Hacked . | . . . Hacks Repelled . | . . . Allies | -11 -10 -10 -------- Run | Yrd Mat Min Total Allies . | . . . Largest Group . | . . . Highest-Rated Group . | . . . Highest-Rated Ally . | . . . Total Orders . | . . . Ally Attacks . | . . . Total Damage . | . . . Kills . | . . . Allies Corrupted . | . . . Allies Melted . | . . . Intel | -11 -10 -10 ------- Run | Yrd Mat Min Robot Analysis Total . | . . . Derelict Logs Recovered 1 | . . 1 Drone Launches . | . . . Drone Recoveries . | . . . Exploration | -11 -10 -10 ------------- Run | Yrd Mat Min Turns Passed 730 | 56 435 239 Spaces Moved 416 | 38 210 168 Core 16 | 12 4 . Treads . | . . . Legs 400 | 26 206 168 Wheels . | . . . Hover . | . . . Flight . | . . . Fastest Speed 50 | 50 120 120 Average Speed 119 | 97 123 120 Slowest Speed 250 | 120 250 120 Overloaded Moves . | . . . Propulsion Burnouts . | . . . Robots Hopped . | . . . Cave-ins Triggered . | . . . Exploration Rate (%) 24 | 4 37 31 Regions Visited 2 Branch Regions 1 Pre-discovered Areas 1 | . . 1 Known Exits Taken . | . . . Unknown Exits Taken 2 | 1 1 . Scrap Searched . | . . . Spaces Dug . | . . . Terrain Destroyed 7 | . . 7 Melee . | . . . Projectile . | . . . AOE 7 | . . 7 Terrain Rammed . | . . . Walls Destroyed . | . . . Machines Disabled . | . . . Actions | -11 -10 -10 --------- Run | Yrd Mat Min Total 554 | 52 315 187 Wait 45 | . 38 7 Move 414 | 37 209 168 Hop . | . . . Pick Up 20 | 6 14 . Fast Attach 7 | 1 5 1 Attach 9 | 6 3 . Detach . | . . . Swap 3 | . 3 . Drop 9 | . 8 1 Fire 32 | 2 21 9 Melee 14 | . 14 . Ram . | . . . Kick 1 | . . 1 Crush . | . . . Escape Stasis . | . . . Rewire . | . . . Trap . | . . . Miscellaneous . | . . . Route ------- -11/Scrapyard -10/Materials -10/Mines History --------- Turn | Location | Event 29 | -11/Scrapyard | Discovered new exit (range 12) 57 | -11/Scrapyard | Entered Materials 285 | -10/Materials | Core integrity fell below 50% 337 | -10/Materials | Build established: Mutant 362 | -10/Materials | Discovered new exit (range 12) 413 | -10/Materials | Central database locked down 492 | -10/Materials | Entered Mines 580 | -10/Mines | Found the Drone Emporium 619 | -10/Mines | Learned location of Storage (-9) 676 | -10/Mines | Assembled infested the area 719 | -10/Mines | Core integrity fell below 20% 728 | -10/Mines | System corruption reached 10% 731 | -10/Mines | Destroyed by as-70781 with Assembled Maul Last Messages --------------- 00689_ K-01 Serf system corrupted by crushing effect. 00693_ as-88333 sneak attacks. 00697_ Knocked back. 00701_ as-67835 sneak attacks. 00701_ Kicked T-07 Excavator. 00705_ U-05 Engineer system corrupted by crushing effect. 00707_ U-05 Engineer destroyed. 00713_ EM Pulse Gun destroyed. 00713_ System corrupted by crushing effect (+5). 00713_ Knocked back. 00714_ as-65337 sneak attacks. 00714_ T-07 Excavator system corrupted by crushing effect. 00714_ T-07 Excavator knocked back. 00715_ T-07 Excavator system terminally corrupted. 00715_ as-87424 sneak attacks. 00715_ R-06 Scavenger destroyed. 00727_ Seismic Detector destroyed. 00727_ System corrupted by crushing effect (+5). 00727_ Knocked back. 00729_ &M1=GF U WFGH V5X9IZOMRIQQ>NV83 Map ----- +----------------------------------------------------+ | | | | | | | | | ??????????????????????????????????????????? | | ??????????????????????????????????????????? | | ??????????????????????????????????????????? | | ???????????????????????####???????????????? | | ??????????????????????## #####???????????? | | ??????????????????????# """#???????????? | | ??????????????????????# "###?????????? | | ??????????????????????## [ ##????????? | | ??????? ######## =[% #????????? | | ??????????????# ## #????????? | | ??????????????###### ### #### ##????????? | | ???????????????????# #?####???###?????????? | | ???????????????????# #############????????? | | ???????????????????# #????????? | | ???????????????????####### ##### #????????? | | ?????????????????????????# #??????????????? | | ?????????????????????????# #??????????????? | | ?????????????????????????# #??????????????? | | ?????????????????????????# #??????????????? | | ?????????????????????????# #??????????????? | | ???????????????????????### #??????????????? | | ???????????????????????# @ #??????????????? | | ???????????????????????#a###??????????????? | | ???????????????????????# #????????????????? | | ???????????????????????# #????????????????? | | ???????????????????????# #????????????????? | | ???????????????????????# #????????????????? | | ???????????????????????# #????????????????? | | ???????????????????????# #????????????????? | | ???????????????????????# #????????????????? | | ????????????????######?# #????????????????? | | ???????????????##""""### #????????????????? | | ???????????????#" ! "## ##???????????????? | | ???????????????#" "## ##??????????????? | | ???????????????## ## ##?????????????? | | ???????????????### ### ########??????? | | ???????????????# X =! #"?????? | | ??????????###### *%= % = #??? | | ??????????# ## *!% % = #??? | | ??????????# [=[ ## ???? | | ??????????# * ##?# ???? | | ??????????## ### ##???### ????? | | ???????????### #??###???????? ????? | | ?????????????## #???????????????????? | | ??????????????## #???????????????????? | | ???????????????##### #???????????????????? | +----------------------------------------------------+ Best States ------------- Heat Dissipation 25 Energy Generation 14 Energy Capacity 160 Matter Stores 300 Matter Capacity 300 Sight Range 16 Terrain Scan Density 10 Evasion (%) 55 Item Schematics ----------------- Mining Claw | -10/Materials | Hacked Robot Schematics ------------------ S-10 Pest | -10/Materials | Hacked G-34 Mercenary | -10/Materials | Hacked Fabricated ------------ Nothing Alien Tech Used ----------------- None Achievements -------------- None Challenges ------------ None Game ------ Seed GravitonArmageddonCycler Manual? 0 Play Time 00:17:13 Cumulative 36.2 hours Start 2024.05.31 @ 16:46:03 End 2024.05.31 @ 17:19:47 Sessions 1 Manual Loads 0 Difficulty Rogue Special Mode None Game No. 62 Rogue 62 Adventurer 0 Explorer 0 Win Type - Total 0 Types 0/0/0/0/0/0/0/0/0 Lore% 21 Gallery% 29 Achievement% 26 Wizard Run 0 Options --------- Layout 0 ASCII 0 Keyboard 0 Movement Mouse Keybinds 0 Fullscreen 2 Font 18/SmallcapsGlow Map View 38x25 Zoom Use 98% Tactical HUD 1 Map Filters NONE Filters NONE Steam 1 RUN: 2e43b21a-b2e7-4e68-b3a7-e089482fa837